[Event "95th Caplin Hastings Congress"]
[Site "Hastings"]
[Date "2019.12.30"]
[Round "3.22"]
[White "Lyell, Mark"]
[Black "Patrick, Chaski"]
[Result "1-0"]
[ECO "B23"]
[WhiteElo "2265"]
[BlackElo "2131"]
[Annotator "NA"]
[PlyCount "71"]
[EventDate "2019.12.28"]
[EventType "swiss"]
[EventCountry "ENG"]
[SourceTitle "playchess.com"]
[Source "ChessBase"]
[SourceQuality "1"]
[TimeControl "40/6600+30:3000+30"]

1. e4 {[%emt 0:09:34]} c5 {[%emt 0:09:53]} 2. Nc3 {[%emt 0:00:08]} e6 {[%emt 0:00:37]} 3. Nge2 {[%emt 0:00:24]} Nc6 {[%emt 0:01:05]} 4. g3 {[%emt 0:00:16]} h5 {[%emt 0:08:48]} 5. Bg2 {[%emt 0:05:09]} h4 {[%emt 0:00:37]} 6. d4 {[%emt 0:06:50]} h3 {[%emt 0:05:56]} 7. Bf1 {[%emt 0:04:07]} cxd4 {[%emt 0:05:39]} 8. Nxd4 {[%emt 0:00:13]} Bc5 {[%emt 0:07:51]} 9. Nb3 {[%emt 0:07:53]} Bb4 {[%emt 0:03:38]} 10. Bd2 {[%emt 0:03:04]} Nf6 {[%emt 0:00:17]} 11. Qe2 {[%emt 0:04:42]} d5 {[%emt 0:13:05]} 12. e5 {[%emt 0:06:07]} Bxc3 {[%emt 0:01:41]} 13. Bxc3 {[%emt 0:00:09]} Ne4 {[%emt 0:00:07]} 14. Qe3 {[%emt 0:01:14]} Nxc3 {[%emt 0:05:44]} 15. Qxc3 {[%emt 0:00:19]} Qb6 {[%emt 0:02:13]} 16. f4 {[%emt 0:05:46]} Bd7 {[%emt 0:04:03]} 17. a4 {[%emt 0:06:40]} d4 {[%emt 0:07:38]} 18. Qc5 {[%emt 0:16:39]} Qxc5 {[%emt 0:00:13]} 19. Nxc5 {[%emt 0:00:03]} Nb4 {[%emt 0:00:07]} 20. O-O-O {[%emt 0:05:01]} Bc6 {[%emt 0:06:18]} 21. Bb5 {[%emt 0:00:45]} Bxb5 {[%emt 0:10:14]} 22. axb5 {[%emt 0:00:02]} O-O-O {[%emt 0:07:55]} 23. Ne4 {[%emt 0:01:18]} Rd5 {[%emt 0:00:22]} 24. c4 {[%emt 0:07:02]} dxc3 {[%emt 0:00:59]} 25. bxc3 {[%emt 0:00:14]} Rxd1+ {[%emt 0:00:25]} 26. Rxd1 {[%emt 0:00:16]} Nd5 {[%emt 0:00:05]} 27. Rd3 {[%emt 0:05:13]} Kc7 {[%emt 0:01:47]} 28. Ng5 {[%emt 0:03:31]} Kb6 {[%emt 0:01:05]} 29. Nxf7 {[%emt 0:00:50]} Rc8 {[%emt 0:00:08]} 30. Kb2 {[%emt 0:07:41]} Rc5 {[%emt 0:01:49]} 31. Nd6 {[%emt 0:00:58]} Rc7 {[%emt 0:02:36]} 32. Kb3 {[%emt 0:03:46]} a5 {[%emt 0:00:49]} 33. bxa6 {[%emt 0:01:25]} Kxa6 {[%emt 0:00:17]} 34. c4 {[%emt 0:00:52]} Nb6 {[%emt 0:00:10]} 35. Kb4 {[%emt 0:00:57]} Ka7 {[%emt 0:00:26]} 36. Nb5+ {[%emt 0:00:08]} 1-0

[Event "95th Caplin Hastings Congress"]
[Site "Hastings"]
[Date "2019.12.30"]
[Round "3.23"]
[White "Ryzhkov, Vjacheslav"]
[Black "Merriman, John"]
[Result "1/2-1/2"]
[ECO "C11"]
[WhiteElo "2134"]
[BlackElo "2219"]
[Annotator "NA"]
[PlyCount "38"]
[EventDate "2019.12.28"]
[EventType "swiss"]
[EventCountry "ENG"]
[SourceTitle "playchess.com"]
[Source "ChessBase"]
[SourceQuality "1"]
[TimeControl "40/6600+30:3000+30"]

1. e4 {[%emt 0:09:33]} e6 {[%emt 0:10:11]} 2. d4 {[%emt 0:00:15]} d5 {[%emt 0:00:30]} 3. Nc3 {[%emt 0:00:15]} Nf6 {[%emt 0:00:19]} 4. e5 {[%emt 0:00:32]} Nfd7 {[%emt 0:00:06]} 5. f4 {[%emt 0:00:06]} c5 {[%emt 0:00:06]} 6. Nf3 {[%emt 0:00:06]} Nc6 {[%emt 0:00:05]} 7. Be3 {[%emt 0:00:07]} a6 {[%emt 0:01:13]} 8. Qd2 {[%emt 0:00:18]} b5 {[%emt 0:01:46]} 9. a3 {[%emt 0:00:41]} Qb6 {[%emt 0:04:51]} 10. Ne2 {[%emt 0:00:39]} b4 {[%emt 0:13:18]} 11. axb4 {[%emt 0:00:31]} Nxb4 {[%emt 0:03:26]} 12. c3 {[%emt 0:01:10]} Nc6 {[%emt 0:01:09]} 13. Nc1 {[%emt 0:00:23]} a5 {[%emt 0:13:25]} 14. Be2 {[%emt 0:04:31]} Ba6 {[%emt 0:11:27]} 15. Nd3 {[%emt 0:01:06]} c4 {[%emt 0:05:58]} 16. Nc1 {[%emt 0:02:17]} Rb8 {[%emt 0:01:25]} 17. Ra2 {[%emt 0:01:32]} Nb4 {[%emt 0:03:07]} 18. Ra1 {[%emt 0:02:46]} Nc6 {[%emt 0:00:31]} 19. Ra2 {[%emt 0:00:53]} Nb4 {[%emt 0:05:22]} 1/2-1/2

[Event "95th Caplin Hastings Congress"]
[Site "Hastings"]
[Date "2019.12.30"]
[Round "3.24"]
[White "Wall, Tim P"]
[Black "Brown, Thomas"]
[Result "1-0"]
[ECO "D34"]
[WhiteElo "2218"]
[BlackElo "2116"]
[Annotator "NA"]
[PlyCount "63"]
[EventDate "2019.12.28"]
[EventType "swiss"]
[EventCountry "ENG"]
[SourceTitle "playchess.com"]
[Source "ChessBase"]
[SourceQuality "1"]
[TimeControl "40/6600+30:3000+30"]

1. d4 {[%emt 0:10:06]} d5 {[%emt 0:09:47]} 2. Nf3 {[%emt 0:01:06]} Nf6 {[%emt 0:00:39]} 3. g3 {[%emt 0:00:39]} e6 {[%emt 0:01:19]} 4. Bg2 {[%emt 0:00:11]} c5 {[%emt 0:01:17]} 5. O-O {[%emt 0:03:37]} Nc6 {[%emt 0:01:45]} 6. c4 {[%emt 0:05:30]} Be7 {[%emt 0:05:22]} 7. cxd5 {[%emt 0:01:55]} exd5 {[%emt 0:00:06]} 8. dxc5 {[%emt 0:00:26]} Bxc5 {[%emt 0:01:35]} 9. a3 {[%emt 0:00:20]} O-O {[%emt 0:06:43]} 10. b4 {[%emt 0:01:33]} Be7 {[%emt 0:00:44]} 11. Nc3 {[%emt 0:03:40]} Be6 {[%emt 0:05:39]} 12. Be3 {[%emt 0:03:40]} Ng4 {[%emt 0:03:55]} 13. Bd4 {[%emt 0:07:45]} Rc8 {[%emt 0:03:01]} 14. Qb3 {[%emt 0:22:38]} Nxd4 {[%emt 0:20:12]} 15. Nxd4 {[%emt 0:00:00]} Bf6 {[%emt 0:02:56]} 16. Rad1 {[%emt 0:00:00]} Bxd4 {[%emt 0:11:48]} 17. Rxd4 {[%emt 0:00:00]} Qb6 {[%emt 0:00:12]} 18. e3 {[%emt 0:00:00]} Rc4 {[%emt 0:06:16]} 19. Rfd1 {[%emt 0:00:38]} Rfc8 {[%emt 0:08:25]} 20. Nxd5 {[%emt 0:10:54]} Rxd4 {[%emt 0:07:05]} 21. Rxd4 {[%emt 0:03:30]} Rc1+ {[%emt 0:05:19]} 22. Rd1 {[%emt 0:00:35]} Rxd1+ {[%emt 0:01:01]} 23. Qxd1 {[%emt 0:00:08]} Qd8 {[%emt 0:01:53]} 24. Qd4 {[%emt 0:08:14]} b6 {[%emt 0:05:04]} 25. h3 {[%emt 0:06:33]} Nh6 {[%emt 0:03:18]} 26. g4 {[%emt 0:01:33]} Bxd5 {[%emt 0:00:26]} 27. Qxd5 {[%emt 0:03:45]} Qxd5 {[%emt 0:00:38]} 28. Bxd5 {[%emt 0:00:07]} Kf8 {[%emt 0:00:13]} 29. Kg2 {[%emt 0:01:56]} Ke7 {[%emt 0:01:28]} 30. Kf3 {[%emt 0:00:28]} Ng8 {[%emt 0:02:49]} 31. g5 {[%emt 0:01:29]} h6 {[%emt 0:00:44]} 32. g6 {[%emt 0:00:27]} 1-0

[Event "95th Caplin Hastings Congress"]
[Site "Hastings"]
[Date "2019.12.30"]
[Round "3.25"]
[White "Price, Gwilym"]
[Black "Lehaci, Miruna-Daria"]
[Result "1/2-1/2"]
[ECO "B90"]
[WhiteElo "2110"]
[BlackElo "2214"]
[Annotator "NA"]
[PlyCount "137"]
[EventDate "2019.12.28"]
[EventType "swiss"]
[EventCountry "ENG"]
[SourceTitle "playchess.com"]
[Source "ChessBase"]
[SourceQuality "1"]
[TimeControl "40/6600+30:3000+30"]

1. e4 {[%emt 0:09:32]} c5 {[%emt 0:10:02]} 2. Nf3 {[%emt 0:00:07]} d6 {[%emt 0:00:04]} 3. d4 {[%emt 0:00:06]} cxd4 {[%emt 0:00:03]} 4. Nxd4 {[%emt 0:00:04]} Nf6 {[%emt 0:00:03]} 5. Nc3 {[%emt 0:00:09]} a6 {[%emt 0:00:04]} 6. Bc4 {[%emt 0:00:07]} Nbd7 {[%emt 0:00:26]} 7. O-O {[%emt 0:01:40]} g6 {[%emt 0:00:28]} 8. Bb3 {[%emt 0:01:51]} Bg7 {[%emt 0:00:44]} 9. Be3 {[%emt 0:00:48]} O-O {[%emt 0:00:28]} 10. f3 {[%emt 0:02:36]} Qc7 {[%emt 0:03:18]} 11. Qd2 {[%emt 0:05:12]} Ne5 {[%emt 0:01:57]} 12. Rad1 {[%emt 0:05:08]} Nc4 {[%emt 0:06:16]} 13. Bxc4 {[%emt 0:00:51]} Qxc4 {[%emt 0:00:04]} 14. Bh6 {[%emt 0:03:20]} b5 {[%emt 0:04:10]} 15. Bxg7 {[%emt 0:06:02]} Kxg7 {[%emt 0:00:05]} 16. b3 {[%emt 0:02:11]} Qc5 {[%emt 0:01:20]} 17. Kh1 {[%emt 0:00:58]} Bb7 {[%emt 0:02:37]} 18. Nce2 {[%emt 0:09:29]} Kh8 {[%emt 0:05:47]} 19. c4 {[%emt 0:12:01]} Rfd8 {[%emt 0:11:23]} 20. Rc1 {[%emt 0:04:08]} Qb6 {[%emt 0:04:31]} 21. a4 {[%emt 0:13:10]} b4 {[%emt 0:04:48]} 22. Nc2 {[%emt 0:01:34]} a5 {[%emt 0:00:41]} 23. Ne3 {[%emt 0:00:31]} e5 {[%emt 0:05:10]} 24. Rcd1 {[%emt 0:08:55]} Rd7 {[%emt 0:05:05]} 25. Ng3 {[%emt 0:04:11]} Re8 {[%emt 0:05:46]} 26. Ng4 {[%emt 0:03:40]} Nxg4 {[%emt 0:03:13]} 27. fxg4 {[%emt 0:00:02]} Qd8 {[%emt 0:03:13]} 28. g5 {[%emt 0:02:03]} Re6 {[%emt 0:02:23]} 29. Rf3 {[%emt 0:02:36]} Kg7 {[%emt 0:03:33]} 30. Rdf1 {[%emt 0:01:45]} Qb6 {[%emt 0:05:56]} 31. h4 {[%emt 0:01:09]} Bc6 {[%emt 0:02:11]} 32. h5 {[%emt 0:03:16]} Kg8 {[%emt 0:02:07]} 33. h6 {[%emt 0:00:24]} Qb7 {[%emt 0:01:21]} 34. Qe3 {[%emt 0:03:20]} Qa7 {[%emt 0:00:29]} 35. Qe2 {[%emt 0:00:11]} Qc7 {[%emt 0:02:10]} 36. Qf2 {[%emt 0:01:07]} Qa7 {[%emt 0:00:05]} 37. Qe2 {[%emt 0:00:09]} Qc7 {[%emt 0:00:03]} 38. Kh2 {[%emt 0:00:34]} Qb7 {[%emt 0:01:00]} 39. Qe3 {[%emt 0:04:06]} Qa7 {[%emt 0:00:09]} 40. Qe2 {[%emt 0:00:04]} Qb7 {[%emt 0:00:04]} 41. R3f2 {[%emt 0:59:21]} Rc7 {[%emt 0:52:40]} 42. Qd3 {[%emt 0:00:00]} Rd7 {[%emt 0:00:00]} 43. Rf6 {[%emt 0:00:00]} Rxf6 {[%emt 0:00:00]} 44. Rxf6 {[%emt 0:00:00]} Qc7 {[%emt 0:00:00]} 45. Kg1 {[%emt 0:00:00]} Rd8 {[%emt 0:00:00]} 46. Nh1 {[%emt 0:00:00]} Bb7 {[%emt 0:00:00]} 47. Nf2 {[%emt 0:00:00]} Bc8 {[%emt 0:00:00]} 48. Nd1 {[%emt 0:00:00]} Be6 {[%emt 0:00:00]} 49. Ne3 {[%emt 0:00:00]} Qc5 {[%emt 0:00:00]} 50. Kf1 {[%emt 0:00:00]} Qc8 {[%emt 0:00:00]} 51. Rf2 {[%emt 0:00:00]} Rd7 {[%emt 0:00:00]} 52. Nd5 {[%emt 0:00:00]} Bxd5 {[%emt 0:00:00]} 53. Qxd5 {[%emt 0:00:00]} Qd8 {[%emt 0:00:00]} 54. Rf6 {[%emt 0:00:00]} Qc7 {[%emt 0:00:00]} 55. g3 {[%emt 0:00:00]} Rd8 {[%emt 0:00:00]} 56. Kg2 {[%emt 0:00:00]} Rd7 {[%emt 0:00:00]} 57. Kh3 {[%emt 0:00:00]} Rd8 {[%emt 0:00:00]} 58. Kh4 {[%emt 0:00:00]} Kf8 {[%emt 0:00:00]} 59. Rf3 {[%emt 0:00:00]} Rd7 {[%emt 0:00:00]} 60. Rd3 {[%emt 0:00:00]} Ke7 {[%emt 0:00:00]} 61. Rd1 {[%emt 0:00:00]} Ke8 {[%emt 0:00:00]} 62. Qd3 {[%emt 0:00:00]} Qd8 {[%emt 0:00:00]} 63. Qf3 {[%emt 0:00:12]} Rc7 {[%emt 0:00:00]} 64. Rd3 {[%emt 0:06:37]} Rc5 {[%emt 0:00:00]} 65. Qd1 {[%emt 0:00:49]} Ke7 {[%emt 0:00:00]} 66. Qf3 {[%emt 0:02:00]} Ke8 {[%emt 0:00:00]} 67. Qd1 {[%emt 0:00:31]} Ke7 {[%emt 0:00:00]} 68. g4 {[%emt 0:01:33]} Qd7 {[%emt 0:00:00]} 69. Rf3 {[%emt 0:00:41]} 1/2-1/2

[Event "95th Caplin Hastings Congress"]
[Site "Hastings"]
[Date "2019.12.30"]
[Round "3.26"]
[White "Ratnesan, Ranesh"]
[Black "Pavlov, Mikhail"]
[Result "1/2-1/2"]
[ECO "A57"]
[WhiteElo "2213"]
[BlackElo "1955"]
[Annotator "NA"]
[PlyCount "64"]
[EventDate "2019.12.28"]
[EventType "swiss"]
[EventCountry "ENG"]
[SourceTitle "playchess.com"]
[Source "ChessBase"]
[SourceQuality "1"]
[TimeControl "40/6600+30:3000+30"]

1. d4 {[%emt 0:09:37]} Nf6 {[%emt 0:09:36]} 2. c4 {[%emt 0:00:15]} c5 {[%emt 0:00:07]} 3. d5 {[%emt 0:00:09]} b5 {[%emt 0:00:06]} 4. cxb5 {[%emt 0:00:07]} a6 {[%emt 0:00:03]} 5. f3 {[%emt 0:00:09]} e6 {[%emt 0:00:05]} 6. e4 {[%emt 0:00:15]} exd5 {[%emt 0:00:21]} 7. e5 {[%emt 0:00:16]} Qe7 {[%emt 0:01:17]} 8. Qe2 {[%emt 0:00:08]} Ng8 {[%emt 0:02:40]} 9. Nc3 {[%emt 0:00:07]} Bb7 {[%emt 0:18:14]} 10. Nh3 {[%emt 0:00:07]} c4 {[%emt 0:04:06]} 11. Nf4 {[%emt 0:00:14]} Qb4 {[%emt 0:04:57]} 12. a3 {[%emt 0:05:53]} Qa5 {[%emt 0:04:12]} 13. Bd2 {[%emt 0:13:30]} Bb4 {[%emt 0:04:38]} 14. Nfxd5 {[%emt 0:08:49]} Bxd5 {[%emt 0:02:48]} 15. Nxd5 {[%emt 0:00:16]} Bxd2+ {[%emt 0:00:06]} 16. Qxd2 {[%emt 0:00:08]} axb5 {[%emt 0:00:12]} 17. a4 {[%emt 0:34:43]} bxa4 {[%emt 0:11:56]} 18. Bxc4 {[%emt 0:06:47]} Ne7 {[%emt 0:04:04]} 19. f4 {[%emt 0:04:16]} Nxd5 {[%emt 0:02:58]} 20. Bxd5 {[%emt 0:00:11]} Nc6 {[%emt 0:00:13]} 21. Qxa5 {[%emt 0:13:53]} Rxa5 {[%emt 0:00:16]} 22. Be4 {[%emt 0:00:24]} Ke7 {[%emt 0:01:51]} 23. O-O {[%emt 0:01:15]} Rb8 {[%emt 0:01:30]} 24. Rf2 {[%emt 0:02:14]} g6 {[%emt 0:01:25]} 25. g3 {[%emt 0:02:05]} Rb4 {[%emt 0:00:47]} 26. Bf3 {[%emt 0:02:00]} Nd4 {[%emt 0:05:59]} 27. Bd1 {[%emt 0:02:16]} Nb3 {[%emt 0:00:16]} 28. Bxb3 {[%emt 0:01:13]} Rxb3 {[%emt 0:00:06]} 29. Rd2 {[%emt 0:00:24]} Rab5 {[%emt 0:00:46]} 30. Rxa4 {[%emt 0:00:26]} Rxb2 {[%emt 0:00:06]} 31. Rad4 {[%emt 0:00:45]} Rxd2 {[%emt 0:00:38]} 32. Rxd2 {[%emt 0:00:06]} Rb6 {[%emt 0:00:08]} 1/2-1/2

[Event "95th Caplin Hastings Congress"]
[Site "Hastings"]
[Date "2019.12.30"]
[Round "3.27"]
[White "Shivika Rohilla"]
[Black "Keetman, Maaike"]
[Result "1/2-1/2"]
[ECO "C06"]
[WhiteElo "1744"]
[BlackElo "2203"]
[Annotator "NA"]
[PlyCount "103"]
[EventDate "2019.12.28"]
[EventType "swiss"]
[EventCountry "ENG"]
[SourceTitle "playchess.com"]
[Source "ChessBase"]
[SourceQuality "1"]
[TimeControl "40/6600+30:3000+30"]

1. e4 {[%emt 0:09:32]} e6 {[%emt 0:09:36]} 2. d4 {[%emt 0:00:09]} d5 {[%emt 0:00:05]} 3. Nd2 {[%emt 0:00:05]} Be7 {[%emt 0:00:09]} 4. Ngf3 {[%emt 0:00:26]} Nf6 {[%emt 0:00:18]} 5. e5 {[%emt 0:00:07]} Nfd7 {[%emt 0:00:05]} 6. Bd3 {[%emt 0:00:16]} c5 {[%emt 0:00:08]} 7. c3 {[%emt 0:00:06]} Nc6 {[%emt 0:00:04]} 8. O-O {[%emt 0:00:21]} g5 {[%emt 0:00:09]} 9. dxc5 {[%emt 0:00:45]} Ndxe5 {[%emt 0:00:19]} 10. Nxe5 {[%emt 0:05:44]} Nxe5 {[%emt 0:00:08]} 11. Bb5+ {[%emt 0:00:48]} Bd7 {[%emt 0:01:10]} 12. Bxd7+ {[%emt 0:01:13]} Nxd7 {[%emt 0:04:27]} 13. b4 {[%emt 0:00:49]} O-O {[%emt 0:04:40]} 14. Nf3 {[%emt 0:06:46]} Re8 {[%emt 0:06:20]} 15. Nd4 {[%emt 0:04:13]} Nf8 {[%emt 0:11:38]} 16. f4 {[%emt 0:05:22]} Qd7 {[%emt 0:13:18]} 17. f5 {[%emt 0:08:43]} e5 {[%emt 0:06:06]} 18. f6 {[%emt 0:00:06]} exd4 {[%emt 0:03:22]} 19. fxe7 {[%emt 0:00:14]} Qxe7 {[%emt 0:00:13]} 20. Qxd4 {[%emt 0:00:51]} Qe5 {[%emt 0:06:29]} 21. Qxe5 {[%emt 0:02:13]} Rxe5 {[%emt 0:00:22]} 22. Bd2 {[%emt 0:00:13]} Rae8 {[%emt 0:02:46]} 23. Rae1 {[%emt 0:00:27]} h6 {[%emt 0:04:39]} 24. Rxe5 {[%emt 0:00:46]} Rxe5 {[%emt 0:00:05]} 25. Re1 {[%emt 0:00:28]} f6 {[%emt 0:03:02]} 26. Kf2 {[%emt 0:00:53]} Kf7 {[%emt 0:00:50]} 27. Be3 {[%emt 0:01:36]} Ne6 {[%emt 0:12:25]} 28. Rd1 {[%emt 0:04:05]} Kg6 {[%emt 0:04:55]} 29. h3 {[%emt 0:01:34]} h5 {[%emt 0:02:34]} 30. a4 {[%emt 0:02:08]} f5 {[%emt 0:03:46]} 31. c6 {[%emt 0:00:56]} bxc6 {[%emt 0:01:50]} 32. Bxa7 {[%emt 0:00:12]} Re4 {[%emt 0:04:47]} 33. Bd4 {[%emt 0:03:17]} f4 {[%emt 0:03:52]} 34. a5 {[%emt 0:01:25]} Nc7 {[%emt 0:00:26]} 35. Bb6 {[%emt 0:00:59]} Na6 {[%emt 0:00:17]} 36. b5 {[%emt 0:00:34]} cxb5 {[%emt 0:00:19]} 37. Rxd5 {[%emt 0:00:08]} b4 {[%emt 0:05:52]} 38. cxb4 {[%emt 0:00:54]} Nxb4 {[%emt 0:01:31]} 39. Rb5 {[%emt 0:01:44]} g4 {[%emt 0:00:52]} 40. hxg4 {[%emt 0:09:52]} hxg4 {[%emt 0:00:09]} 41. a6 {[%emt 0:53:13]} Nd3+ {[%emt 0:53:19]} 42. Kg1 {[%emt 0:00:07]} Re1+ {[%emt 0:00:03]} 43. Kh2 {[%emt 0:00:07]} g3+ {[%emt 0:00:06]} 44. Kh3 {[%emt 0:00:03]} Nf2+ {[%emt 0:00:05]} 45. Bxf2 {[%emt 0:00:11]} gxf2 {[%emt 0:00:02]} 46. Rb6+ {[%emt 0:00:36]} Kf7 {[%emt 0:01:09]} 47. a7 {[%emt 0:00:44]} f1=Q {[%emt 0:00:00]} 48. a8=Q {[%emt 0:00:00]} Qd3+ {[%emt 0:00:00]} 49. Kg4 {[%emt 0:00:00]} Qd7+ {[%emt 0:00:00]} 50. Kg5 {[%emt 0:00:00]} Qe7+ {[%emt 0:00:00]} 51. Kg4 {[%emt 0:00:00]} Qd7+ {[%emt 0:00:00]} 52. Kg5 {[%emt 0:00:00]} 1/2-1/2

[Event "95th Caplin Hastings Congress"]
[Site "Hastings"]
[Date "2019.12.30"]
[Round "3.28"]
[White "Stoyanov, Viktor"]
[Black "Akeya-Price, Robert"]
[Result "1/2-1/2"]
[ECO "E01"]
[WhiteElo "2272"]
[BlackElo "1880"]
[Annotator "NA"]
[PlyCount "76"]
[EventDate "2019.12.28"]
[EventType "swiss"]
[EventCountry "ENG"]
[SourceTitle "playchess.com"]
[Source "ChessBase"]
[SourceQuality "1"]
[TimeControl "40/6600+30:3000+30"]

1. d4 {[%emt 0:09:35]} d5 {[%emt 0:10:04]} 2. Nf3 {[%emt 0:02:29]} Nf6 {[%emt 0:00:10]} 3. c4 {[%emt 0:00:09]} e6 {[%emt 0:00:17]} 4. g3 {[%emt 0:00:04]} Bb4+ {[%emt 0:00:35]} 5. Nbd2 {[%emt 0:00:58]} O-O {[%emt 0:01:19]} 6. Bg2 {[%emt 0:00:37]} c5 {[%emt 0:03:11]} 7. O-O {[%emt 0:03:28]} cxd4 {[%emt 0:04:47]} 8. Nxd4 {[%emt 0:00:47]} Nc6 {[%emt 0:02:23]} 9. N2f3 {[%emt 0:06:19]} Nxd4 {[%emt 0:07:24]} 10. Qxd4 {[%emt 0:01:00]} b6 {[%emt 0:11:16]} 11. Bg5 {[%emt 0:06:58]} Be7 {[%emt 0:01:17]} 12. cxd5 {[%emt 0:04:45]} Nxd5 {[%emt 0:01:35]} 13. Bxe7 {[%emt 0:01:45]} Qxe7 {[%emt 0:00:17]} 14. Rfd1 {[%emt 0:05:40]} Bb7 {[%emt 0:03:05]} 15. Rac1 {[%emt 0:01:21]} Rfd8 {[%emt 0:00:55]} 16. Qa4 {[%emt 0:00:47]} Qb4 {[%emt 0:18:46]} 17. Qxb4 {[%emt 0:02:59]} Nxb4 {[%emt 0:00:03]} 18. Rxd8+ {[%emt 0:16:10]} Rxd8 {[%emt 0:00:03]} 19. a3 {[%emt 0:21:19]} Na6 {[%emt 0:14:42]} 20. b4 {[%emt 0:01:01]} f6 {[%emt 0:06:04]} 21. Ne1 {[%emt 0:03:41]} Bxg2 {[%emt 0:01:28]} 22. Kxg2 {[%emt 0:00:05]} Kf7 {[%emt 0:02:26]} 23. Nd3 {[%emt 0:00:24]} Rd7 {[%emt 0:00:44]} 24. b5 {[%emt 0:03:07]} Nc7 {[%emt 0:00:45]} 25. a4 {[%emt 0:00:14]} e5 {[%emt 0:06:32]} 26. Kf3 {[%emt 0:00:57]} Ne6 {[%emt 0:01:24]} 27. Ke3 {[%emt 0:03:16]} Rd4 {[%emt 0:01:45]} 28. Ra1 {[%emt 0:00:36]} Nc7 {[%emt 0:02:13]} 29. f3 {[%emt 0:02:08]} Nd5+ {[%emt 0:04:01]} 30. Kd2 {[%emt 0:00:12]} Nb4 {[%emt 0:02:28]} 31. Kc3 {[%emt 0:02:11]} Nxd3 {[%emt 0:01:02]} 32. exd3 {[%emt 0:00:07]} Ke6 {[%emt 0:00:58]} 33. f4 {[%emt 0:00:24]} Kd5 {[%emt 0:03:44]} 34. fxe5 {[%emt 0:00:08]} fxe5 {[%emt 0:00:24]} 35. h3 {[%emt 0:05:34]} e4 {[%emt 0:02:51]} 36. dxe4+ {[%emt 0:00:21]} Rxe4 {[%emt 0:00:08]} 37. Kd3 {[%emt 0:01:18]} Rd4+ {[%emt 0:00:27]} 38. Kc3 {[%emt 0:00:39]} Re4 {[%emt 0:00:12]} 1/2-1/2

[Event "95th Caplin Hastings Congress"]
[Site "Hastings"]
[Date "2019.12.30"]
[Round "3.29"]
[White "McNally, Richard J E"]
[Black "Ratsma, Midas"]
[Result "0-1"]
[ECO "B18"]
[WhiteElo "1967"]
[BlackElo "2270"]
[Annotator "NA"]
[PlyCount "62"]
[EventDate "2019.12.28"]
[EventType "swiss"]
[EventCountry "ENG"]
[SourceTitle "playchess.com"]
[Source "ChessBase"]
[SourceQuality "1"]
[TimeControl "40/6600+30:3000+30"]

1. e4 {[%emt 0:09:53]} c6 {[%emt 0:09:53]} 2. d4 {[%emt 0:00:25]} d5 {[%emt 0:00:05]} 3. Nc3 {[%emt 0:00:39]} dxe4 {[%emt 0:00:05]} 4. Nxe4 {[%emt 0:00:27]} Bf5 {[%emt 0:00:05]} 5. Ng3 {[%emt 0:00:37]} Bg6 {[%emt 0:00:04]} 6. Nf3 {[%emt 0:00:29]} Nd7 {[%emt 0:00:40]} 7. Bd3 {[%emt 0:00:18]} Bxd3 {[%emt 0:01:02]} 8. Qxd3 {[%emt 0:00:15]} Ngf6 {[%emt 0:00:34]} 9. O-O {[%emt 0:00:30]} e6 {[%emt 0:01:19]} 10. Bf4 {[%emt 0:01:15]} Be7 {[%emt 0:01:46]} 11. Rfe1 {[%emt 0:00:37]} O-O {[%emt 0:02:25]} 12. c4 {[%emt 0:00:43]} Qb6 {[%emt 0:13:28]} 13. a3 {[%emt 0:07:47]} Rfd8 {[%emt 0:02:13]} 14. Qc2 {[%emt 0:00:46]} Bf8 {[%emt 0:08:11]} 15. Rad1 {[%emt 0:02:51]} Rac8 {[%emt 0:03:11]} 16. c5 {[%emt 0:12:05]} Qa6 {[%emt 0:01:33]} 17. Ng5 {[%emt 0:01:26]} b6 {[%emt 0:07:25]} 18. N5e4 {[%emt 0:02:27]} Ne8 {[%emt 0:15:55]} 19. Bg5 {[%emt 0:07:12]} f6 {[%emt 0:07:14]} 20. Qb3 {[%emt 0:01:09]} Nc7 {[%emt 0:02:19]} 21. Bf4 {[%emt 0:08:45]} Qb5 {[%emt 0:05:25]} 22. Qa2 {[%emt 0:07:27]} Nd5 {[%emt 0:01:41]} 23. Bd6 {[%emt 0:00:25]} bxc5 {[%emt 0:05:37]} 24. Nc3 {[%emt 0:07:30]} Qa5 {[%emt 0:05:17]} 25. Rxe6 {[%emt 0:00:47]} cxd4 {[%emt 0:02:10]} 26. Nxd5 {[%emt 0:01:45]} cxd5 {[%emt 0:04:55]} 27. Bxf8 {[%emt 0:01:27]} Nxf8 {[%emt 0:00:35]} 28. Re7 {[%emt 0:01:04]} Qc5 {[%emt 0:05:38]} 29. Rde1 {[%emt 0:04:38]} d3 {[%emt 0:01:59]} 30. Qb3 {[%emt 0:06:46]} d2 {[%emt 0:02:20]} 31. R1e2 {[%emt 0:02:24]} Qc1+ {[%emt 0:01:47]} 0-1

[Event "95th Caplin Hastings Congress"]
[Site "Hastings"]
[Date "2019.12.30"]
[Round "3.30"]
[White "Rice, Chris B"]
[Black "Anderson, John"]
[Result "1/2-1/2"]
[ECO "A20"]
[WhiteElo "2027"]
[BlackElo "2163"]
[Annotator "NA"]
[PlyCount "78"]
[EventDate "2019.12.28"]
[EventType "swiss"]
[EventCountry "ENG"]
[SourceTitle "playchess.com"]
[Source "ChessBase"]
[SourceQuality "1"]
[TimeControl "40/6600+30:3000+30"]

1. c4 {[%emt 0:16:18]} Nf6 {[%emt 0:09:38]} 2. g3 {[%emt 0:00:16]} e5 {[%emt 0:00:41]} 3. Bg2 {[%emt 0:00:08]} c6 {[%emt 0:00:12]} 4. Nf3 {[%emt 0:00:10]} e4 {[%emt 0:00:09]} 5. Nd4 {[%emt 0:00:03]} Qb6 {[%emt 0:00:58]} 6. Nb3 {[%emt 0:10:33]} a5 {[%emt 0:00:59]} 7. d3 {[%emt 0:11:38]} a4 {[%emt 0:23:45]} 8. Be3 {[%emt 0:01:59]} Qd8 {[%emt 0:04:58]} 9. Nd4 {[%emt 0:06:25]} Bb4+ {[%emt 0:03:09]} 10. Bd2 {[%emt 0:01:22]} Bxd2+ {[%emt 0:08:12]} 11. Qxd2 {[%emt 0:02:16]} exd3 {[%emt 0:01:15]} 12. Qxd3 {[%emt 0:01:34]} O-O {[%emt 0:02:04]} 13. O-O {[%emt 0:02:44]} d5 {[%emt 0:00:04]} 14. cxd5 {[%emt 0:05:14]} Nxd5 {[%emt 0:00:10]} 15. Rd1 {[%emt 0:13:25]} Na6 {[%emt 0:02:39]} 16. Nc3 {[%emt 0:07:37]} Nxc3 {[%emt 0:05:44]} 17. Qxc3 {[%emt 0:01:37]} Qe7 {[%emt 0:00:04]} 18. e4 {[%emt 0:12:23]} Nc7 {[%emt 0:15:57]} 19. Rac1 {[%emt 0:07:50]} g6 {[%emt 0:00:23]} 20. Re1 {[%emt 0:01:33]} Rd8 {[%emt 0:04:26]} 21. a3 {[%emt 0:09:26]} Qd6 {[%emt 0:20:45]} 22. Nc2 {[%emt 0:01:10]} Nb5 {[%emt 0:02:21]} 23. Qb4 {[%emt 0:00:55]} Be6 {[%emt 0:00:35]} 24. Qxd6 {[%emt 0:02:00]} Rxd6 {[%emt 0:00:24]} 25. Bf1 {[%emt 0:00:44]} Nd4 {[%emt 0:00:39]} 26. Nxd4 {[%emt 0:00:24]} Rxd4 {[%emt 0:00:02]} 27. Rcd1 {[%emt 0:00:57]} Rad8 {[%emt 0:00:07]} 28. Rxd4 {[%emt 0:00:53]} Rxd4 {[%emt 0:00:02]} 29. f3 {[%emt 0:00:41]} Rd2 {[%emt 0:02:29]} 30. Re2 {[%emt 0:00:12]} Rd1 {[%emt 0:00:02]} 31. Kf2 {[%emt 0:01:18]} Bc4 {[%emt 0:00:30]} 32. Re1 {[%emt 0:00:43]} Rd2+ {[%emt 0:02:23]} 33. Ke3 {[%emt 0:00:06]} Rc2 {[%emt 0:00:04]} 34. Bxc4 {[%emt 0:00:15]} Rxc4 {[%emt 0:00:02]} 35. Re2 {[%emt 0:00:41]} Kf8 {[%emt 0:00:25]} 36. Rd2 {[%emt 0:00:20]} b5 {[%emt 0:00:28]} 37. e5 {[%emt 0:01:08]} Ke7 {[%emt 0:00:06]} 38. f4 {[%emt 0:00:05]} h5 {[%emt 0:00:47]} 39. Kf3 {[%emt 0:00:22]} Rc1 {[%emt 0:02:05]} 1/2-1/2